lending/lending_fUSD_20250808
["ID","MTS","AMOUNT","RATE_DAILY","PERIOD"]
[378007938,1754665866486,-151.0,0.00019302,2]
[378007939,1754665866495,-151.0,0.00019302,2]
[378007940,1754665866504,-493.97,0.00019302,2]
[378007941,1754665866514,-151.0,0.00019302,2]
[378007942,1754665866523,-151.0,0.00019302,2]
[378007943,1754665866532,-151.0,0.00019302,2]
[378007944,1754665866542,-151.0,0.00019302,2]
[378007945,1754665866553,-151.0,0.00019302,2]
[378007946,1754665866562,-162.135385,0.00019302,2]
[378007947,1754665866572,-406.416501,0.00019302,2]
[378007948,1754665866581,-406.416501,0.00019302,2]
[378007949,1754665866591,-1500.0,0.00019302,7]
[378007950,1754665866600,-1232.655986,0.00019302,7]
[378007951,1754665866610,-294.672971,0.00019302,2]
[378007952,1754665866620,-294.672971,0.00019302,2]
[378007953,1754665866629,-294.672971,0.00019302,2]
[378007954,1754665866644,-294.672971,0.00019302,2]
[378007955,1754665866654,-1903.86,0.00019302,2]
[378007956,1754665866663,-400.0,0.00019302,2]
[378007957,1754665866673,-151.0,0.00019302,2]
[378007958,1754665866682,-1894.5,0.00019302,2]
[378007959,1754665866691,-508.12,0.00019302,2]
[378007960,1754665866701,-400.0,0.00019302,2]
[378007961,1754665866710,-936.56,0.00019302,2]
[378007962,1754665866720,-514.13,0.00019302,2]
[378007963,1754665866730,-151.0,0.00019302,2]
[378007964,1754665866739,-151.0,0.00019302,2]
[378007965,1754665866748,-1758.55,0.00019302,2]
[378007966,1754665866758,-151.0,0.00019302,2]
[378007967,1754665866767,-151.0,0.00019302,2]
[378007968,1754665866777,-504.28,0.00019302,2]
[378007969,1754665866786,-824.2,0.00019302,2]
[378007970,1754665866796,-1151.3,0.00019302,2]
[378007971,1754665866807,-194.659064,0.00019302,2]
[378007972,1754665866816,-194.659064,0.00019302,2]
[378007973,1754665866826,-400.0,0.00019302,2]
[378007974,1754665866836,-194.659064,0.00019302,2]
[378007975,1754665866845,-194.659064,0.00019302,2]
[378007976,1754665866855,-151.0,0.00019302,2]
[378007977,1754665866864,-1221.48,0.00019302,2]
[378007978,1754665866874,-151.0,0.00019302,2]
[378007979,1754665866883,-665.51,0.00019302,2]
[378007980,1754665866893,-151.0,0.00019302,2]
[378007981,1754665866902,-176.990212,0.00019302,2]
[378007982,1754665866912,-176.990212,0.00019302,2]
[378007983,1754665866922,-874.41,0.00019302,2]
[378007984,1754665866931,-176.990212,0.00019302,2]
[378007985,1754665866941,-176.990212,0.00019302,2]
[378007986,1754665866951,-413.73,0.00019302,2]
[378007987,1754665866960,-151.0,0.00019302,2]
[378007988,1754665866970,-1009.5,0.00019302,2]
[378007989,1754665866980,-151.0,0.00019302,2]
[378007990,1754665866990,-151.0,0.00019302,2]
[378007991,1754665866999,-400.0,0.00019302,2]
[378007992,1754665867008,-680.11,0.00019302,2]
[378007993,1754665867018,-237.787037,0.00019302,2]
[378007994,1754665867027,-400.0,0.00019302,2]
[378007995,1754665867036,-771.541501,0.00019302,2]
[378007996,1754665867045,-771.541501,0.00019302,2]
[378007997,1754665867057,-400.0,0.00019302,2]
[378007998,1754665867066,-771.541501,0.00019302,2]
[378007999,1754665867076,-771.541501,0.00019302,2]
[378008000,1754665867085,-571.33,0.00019302,2]
[378008001,1754665867095,-151.0,0.00019302,2]
[378008002,1754665867105,-512.18,0.00019302,2]
[378008003,1754665867115,-151.0,0.00019302,2]
[378008004,1754665867124,-515.23,0.00019302,2]
[378008005,1754665867133,-400.0,0.00019302,2]
[378008006,1754665867142,-400.0,0.00019302,2]
[378008007,1754665867152,-872.63,0.00019302,2]
[378008008,1754665867161,-151.0,0.00019302,2]
[378008009,1754665867171,-151.0,0.00019302,2]
[378008010,1754665867180,-594.69,0.00019302,2]
[378008011,1754665867189,-1929.53,0.00019302,2]
[378008012,1754665867199,-1377.46,0.00019302,2]
[378008013,1754665867208,-2484.39,0.00019302,2]
[378008014,1754665867218,-368.599366,0.00019302,2]
[378008015,1754665867228,-509.4,0.00019302,2]
[378008016,1754665867237,-368.599366,0.00019302,2]
[378008017,1754665867246,-8140.84,0.00019302,2]
[378008018,1754665867256,-654.3,0.00019302,2]
[378008019,1754665867265,-2070.05,0.00019302,2]
[378008020,1754665867275,-1804.46,0.00019302,2]
[378008021,1754665867284,-255.832727,0.00019302,2]
[378008022,1754665867294,-531.78,0.00019302,2]
[378008023,1754665867305,-2343.77,0.00019302,2]
[378008024,1754665867315,-255.832727,0.00019302,2]
[378008025,1754665867325,-504.1,0.00019302,2]
[378008026,1754665867335,-2149.16,0.00019302,2]
[378008027,1754665867344,-151.0,0.00019302,2]
[378008028,1754665867354,-177.967364,0.00019302,2]
[378008029,1754665867363,-5261.369985,0.00019302,2]
[378008030,1754665867373,-400.0,0.00019302,2]
[378008031,1754665867383,-5261.369985,0.00019302,2]
[378008032,1754665867393,-177.967364,0.00019302,2]
[378008033,1754665867402,-495.95,0.00019302,2]
[378008034,1754665867412,-554.41,0.00019302,2]
[378008035,1754665867421,-4671.67,0.00019302,2]
[378008036,1754665867430,-400.0,0.00019302,2]
[378008037,1754665867439,-1061.56,0.00019302,2]
[378008038,1754665867449,-1288.94,0.00019302,2]
[378008039,1754665867458,-1919.61,0.00019302,2]
[378008040,1754665867467,-658.81,0.00019302,2]
[378008041,1754665867476,-1740.88,0.00019302,2]
[378008042,1754665867485,-1822.11,0.00019302,2]
[378008043,1754665867495,-5622.92,0.00019302,2]
[378008044,1754665867504,-1193.67,0.00019302,2]
[378008045,1754665867513,-151.0,0.00019302,2]
[378008046,1754665867522,-800.02,0.00019302,2]
[378008047,1754665867532,-151.0,0.00019302,2]
[378008048,1754665867541,-218.556623,0.00019302,2]
[378008049,1754665867552,-1485.12,0.00019302,2]
[378008050,1754665867561,-218.556623,0.00019302,2]
[378008051,1754665867571,-2726.91,0.00019302,2]
[378008052,1754665867580,-1609.87,0.00019302,2]
[378008053,1754665867589,-1781.37,0.00019302,2]
[378008054,1754665867599,-1279.58,0.00019302,2]
[378008055,1754665867609,-892.95,0.00019302,2]
[378008056,1754665867618,-178.807506,0.00019302,2]
[378008057,1754665867627,-4263.28,0.00019302,2]
[378008058,1754665867637,-400.0,0.00019302,2]
[378008059,1754665867648,-178.807506,0.00019302,2]
[378008060,1754665867657,-632.28,0.00019302,2]
[378008061,1754665867666,-476.08,0.00019302,2]
[378008062,1754665867676,-5283.43,0.00019302,2]
[378008063,1754665867686,-603.86,0.00019302,2]
[378008064,1754665867695,-1370.93,0.00019302,2]
[378008065,1754665867704,-654.87,0.00019302,2]
[378008066,1754665867716,-203.618454,0.00019302,2]
[378008067,1754665867725,-662.57,0.00019302,2]
[378008068,1754665867735,-203.618454,0.00019302,2]
[378008069,1754665867744,-1612.6,0.00019302,2]
[378008070,1754665867753,-16809.6,0.00019302,2]
[378008071,1754665867763,-626.82,0.00019302,2]
[378008072,1754665867772,-595.78,0.00019302,2]
[378008073,1754665867781,-151.0,0.00019302,2]
[378008074,1754665867790,-295.452996,0.00019302,2]
[378008075,1754665867800,-445.55,0.00019302,2]
[378008076,1754665867810,-888.103447,0.00019302,2]
[378008077,1754665867819,-172.015019,0.00019302,2]
[378008078,1754665867828,-888.103447,0.00019302,2]
[378008079,1754665867838,-440.64,0.00019302,2]
[378008080,1754665867847,-400.0,0.00019302,2]
[378008081,1754665867856,-1523.12,0.00019302,2]
[378008082,1754665867866,-469.66,0.00019302,2]
[378008083,1754665867875,-2837.61,0.00019302,2]
[378008084,1754665867885,-1107.69,0.00019302,2]
[378008085,1754665867905,-1566.58,0.00019302,2]
[378008086,1754665867926,-1777.7,0.00019302,2]
[378008087,1754665867937,-151.0,0.00019302,2]
[378008088,1754665867946,-1528.48,0.00019302,2]
[378008089,1754665867957,-452.76,0.00019302,2]
[378008090,1754665867966,-151.0,0.00019303,2]
[378008091,1754665867975,-205.32114,0.00019303,2]
[378008092,1754665867985,-205.32114,0.00019303,2]
[378008093,1754665867996,-151.0,0.00019303,2]
[378008094,1754665868005,-400.0,0.00019303,2]
[378008095,1754665868015,-400.0,0.00019303,2]
[378008096,1754665868024,-2001.05,0.00019303,2]
[378008097,1754665868034,-400.0,0.00019303,2]
[378008098,1754665868055,-574.4,0.00019303,2]
[378008099,1754665868064,-400.0,0.00019303,2]
[378008100,1754665868074,-1650.03,0.00019303,2]
[378008101,1754665868083,-897.62,0.00019303,2]
[378008102,1754665868093,-528.95,0.00019303,2]
[378008103,1754665868103,-400.0,0.00019303,2]
[378008104,1754665868112,-400.0,0.00019303,2]
[378008105,1754665868121,-4238.78,0.00019303,2]
[378008106,1754665868132,-2140.87,0.00019303,2]
[378008107,1754665868141,-3745.72,0.00019303,2]
[378008108,1754665868150,-1142.58,0.00019303,2]
[378008109,1754665868160,-1000.0,0.00019303,2]
[378008110,1754665868169,-2647.29,0.00019303,2]
[378008111,1754665868178,-5081.99,0.00019303,2]
[378008112,1754665868187,-400.0,0.00019303,2]
[378008113,1754665868196,-4075.89,0.00019303,2]
[378008114,1754665868205,-3428.61,0.00019303,2]
[378008115,1754665868214,-3823.96,0.00019303,2]
[378008116,1754665868223,-5238.54,0.00019303,2]
[378008117,1754665868232,-10172.64,0.00019303,2]
[378008118,1754665868241,-6215.17,0.00019303,2]
[378008119,1754665868251,-168.0,0.00019303,2]
[378008120,1754665868261,-151.0,0.00019304,2]
[378008121,1754665868269,-151.0,0.00019304,2]
[378008122,1754665868279,-151.0,0.00019304,2]
[378008123,1754665868288,-151.0,0.00019304,2]
[378008124,1754665868298,-151.0,0.00019304,2]
[378008125,1754665868308,-151.0,0.00019304,2]
[378008126,1754665868317,-406.416501,0.00019304,2]
[378008127,1754665868326,-406.416501,0.00019304,2]
[378008128,1754665868337,-253.951013,0.00019305,2]
[378008129,1754665868347,-151.0,0.00019305,2]
[378008130,1754665868358,-151.0,0.00019305,2]
[378008131,1754665868367,-151.0,0.00019305,2]
[378008132,1754665868376,-1409.30416601,0.00019307,2]
[378008133,1754665868388,-239.79559581,0.00019309,2]
[378008134,1754665868399,-500.0,0.00019309,2]
[378008135,1754665868410,-500.0,0.00019309,2]
[378008136,1754665868420,-233.0,0.0001931,2]
[378008137,1754665868430,-151.0,0.00019315,2]
[378008138,1754665868440,-200.631943,0.00019315,2]
[378008139,1754665868449,-399.572307,0.00019315,2]
[378008140,1754665868459,-399.572307,0.00019315,2]
[378008141,1754665868469,-914.1,0.00019318,2]
[378008142,1754665868480,-1147.74,0.0001932,2]
[378008143,1754665868491,-400.0,0.0001932,2]
[378008144,1754665868500,-1506.21,0.0001932,2]
[378008145,1754665868510,-400.0,0.00019321,2]
[378008146,1754665868519,-406.77,0.00019321,2]
[378008147,1754665868528,-400.0,0.00019321,2]
[378008148,1754665868545,-418.67,0.00019321,2]
[378008149,1754665868567,-639.76,0.00019321,2]
[378008150,1754665868578,-400.0,0.00019321,2]
[378008151,1754665868587,-680.27,0.00019321,2]
[378008152,1754665868597,-400.0,0.00019321,2]
[378008153,1754665868606,-1037.97,0.00019321,2]
[378008154,1754665868616,-400.0,0.00019321,2]
[378008155,1754665868625,-400.0,0.00019321,2]
[378008156,1754665868635,-400.0,0.00019321,2]
[378008157,1754665868648,-400.0,0.00019321,2]
[378008158,1754665868658,-400.0,0.00019321,2]
[378008159,1754665868667,-643.63,0.00019321,2]
[378008160,1754665868677,-400.0,0.00019321,2]
[378008161,1754665868686,-495.04,0.00019321,2]
[378008162,1754665868695,-834.26,0.00019321,2]
[378008163,1754665868705,-1082.64,0.00019321,2]
[378008164,1754665868715,-400.0,0.00019321,2]
[378008165,1754665868724,-400.0,0.00019321,2]
[378008166,1754665868734,-1314.05,0.00019321,2]
[378008167,1754665868744,-400.0,0.00019321,2]
[378008168,1754665868753,-400.0,0.00019321,2]
[378008169,1754665868763,-400.0,0.00019321,2]
[378008170,1754665868773,-435.51,0.00019321,2]
[378008171,1754665868783,-400.0,0.00019321,2]
[378008172,1754665868792,-151.0,0.00019321,2]
[378008173,1754665868805,-400.0,0.00019321,2]
[378008174,1754665868815,-1056.5,0.00019321,2]
[378008175,1754665868824,-506.54,0.00019321,2]
[378008176,1754665868834,-640.77,0.00019321,2]
[378008177,1754665868844,-409.28,0.00019321,2]
[378008178,1754665868855,-605.96,0.00019321,2]
[378008179,1754665868864,-426.37,0.00019321,2]
[378008180,1754665868874,-400.0,0.00019321,2]
[378008181,1754665868884,-400.0,0.00019321,2]
[378008182,1754665868894,-400.0,0.00019321,2]
[378008183,1754665868904,-1344.72,0.00019321,2]
[378008184,1754665868913,-400.0,0.00019321,2]
[378008185,1754665868923,-400.0,0.00019321,2]
[378008186,1754665868933,-400.0,0.00019321,2]
[378008187,1754665868943,-400.0,0.00019321,2]
[378008188,1754665868952,-741.27,0.00019321,2]
[378008189,1754665868962,-419.32,0.00019321,2]
[378008190,1754665868972,-1048.94,0.00019321,2]
[378008191,1754665868982,-421.24,0.00019321,2]
[378008192,1754665868992,-400.0,0.00019321,2]
[378008193,1754665869001,-636.47,0.00019321,2]
[378008194,1754665869011,-1559.71,0.00019321,2]
[378008195,1754665869022,-400.0,0.00019321,2]
[378008196,1754665869032,-488.29,0.00019321,2]
[378008197,1754665869041,-582.23,0.00019321,2]
[378008198,1754665869051,-400.0,0.00019321,2]
[378008199,1754665869061,-1131.21,0.00019321,2]
[378008200,1754665869070,-400.0,0.00019321,2]
[378008201,1754665869079,-400.0,0.00019321,2]
[378008202,1754665869090,-400.0,0.00019321,2]
[378008203,1754665869100,-498.79,0.00019321,2]
[378008204,1754665869109,-412.19,0.00019321,2]
[378008205,1754665869119,-1493.88,0.00019321,2]
[378008206,1754665869129,-478.7,0.00019321,2]
[378008207,1754665869138,-400.0,0.00019321,2]
[378008208,1754665869149,-400.0,0.00019321,2]
[378008209,1754665869160,-400.0,0.00019321,2]
[378008210,1754665869169,-400.0,0.00019321,2]
[378008211,1754665869179,-400.0,0.00019321,2]
[378008212,1754665869188,-878.26,0.00019321,2]
[378008213,1754665869199,-852.63,0.00019321,2]
[378008214,1754665869209,-400.0,0.00019321,2]
[378008215,1754665869218,-400.0,0.00019321,2]
[378008216,1754665869228,-400.0,0.00019321,2]
[378008217,1754665869237,-1151.07,0.00019321,2]
[378008218,1754665869247,-427.98296206,0.00019321,2]
[378008219,1754665869256,-400.0,0.00019321,2]
[378008220,1754665869266,-400.0,0.00019321,2]
[378008221,1754665869275,-400.0,0.00019321,2]
[378008222,1754665869285,-400.0,0.00019321,2]
[378008223,1754665869294,-400.0,0.00019321,2]
[378008224,1754665869306,-342.10586685,0.00019321,2]
[378008225,1754665869316,-1189.03,0.00019321,2]
[378008226,1754665869325,-400.0,0.00019321,2]
[378008227,1754665869335,-400.0,0.00019321,2]
[378008228,1754665869344,-400.0,0.00019321,2]
[378008229,1754665869354,-400.0,0.00019321,2]
[378008230,1754665869363,-400.0,0.00019321,2]
[378008231,1754665869373,-400.0,0.00019321,2]
[378008232,1754665869382,-478.81845796,0.00019321,2]
[378008233,1754665869392,-400.0,0.00019321,2]
[378008234,1754665869403,-2092.47,0.00019321,2]
[378008235,1754665869412,-400.0,0.00019321,2]
[378008236,1754665869422,-400.0,0.00019321,2]
[378008237,1754665869432,-368.599366,0.00019321,2]
[378008238,1754665869441,-400.0,0.00019321,2]
[378008239,1754665869451,-496.27,0.00019321,2]
[378008240,1754665869460,-368.599357,0.00019321,2]
[378008241,1754665869469,-454.2,0.00019321,2]
[378008242,1754665869479,-400.0,0.00019321,2]
[378008243,1754665869488,-1142.29,0.00019321,2]
[378008244,1754665869498,-670.13,0.00019321,2]
[378008245,1754665869507,-2302.35,0.00019321,2]
[378008246,1754665869517,-662.54,0.00019321,2]
[378008247,1754665869527,-400.0,0.00019321,2]
[378008248,1754665869537,-400.0,0.00019321,2]
[378008249,1754665869547,-400.0,0.00019321,2]
[378008250,1754665869558,-605.62,0.00019321,2]
[378008251,1754665869567,-432.65,0.00019321,2]
[378008252,1754665869577,-699.18,0.00019321,2]
[378008253,1754665869586,-454.4,0.00019321,2]
[378008254,1754665869596,-400.0,0.00019321,2]
[378008255,1754665869606,-460.62,0.00019321,2]
[378008256,1754665869615,-400.0,0.00019321,2]
[378008257,1754665869625,-400.0,0.00019321,2]
[378008258,1754665869636,-255.832727,0.00019321,2]
[378008259,1754665869650,-400.0,0.00019321,2]
[378008260,1754665869661,-400.0,0.00019321,2]
[378008261,1754665869671,-255.832733,0.00019321,2]
[378008262,1754665869680,-1003.64,0.00019321,2]
[378008263,1754665869690,-475.98,0.00019321,2]
[378008264,1754665869700,-400.0,0.00019321,2]
[378008265,1754665869710,-450.88,0.00019321,2]
[378008266,1754665869721,-428.3,0.00019321,2]
[378008267,1754665869733,-485.3,0.00019321,2]
[378008268,1754665869744,-1113.86,0.00019321,2]
[378008269,1754665869754,-833.67,0.00019321,2]
[378008270,1754665869764,-400.92,0.00019321,2]
[378008271,1754665869774,-400.0,0.00019321,2]
[378008272,1754665869783,-151.0,0.00019321,2]
[378008273,1754665869793,-177.967364,0.00019321,2]
[378008274,1754665869802,-5261.369985,0.00019321,2]
[378008275,1754665869812,-400.0,0.00019321,2]
[378008276,1754665869822,-5261.369988,0.00019321,2]
[378008277,1754665869832,-826.02,0.00019321,2]
[378008278,1754665869842,-177.967366,0.00019321,2]
[378008279,1754665869851,-490.97,0.00019321,2]
[378008280,1754665869861,-684.28,0.00019321,2]
[378008281,1754665869870,-1125.99,0.00019321,2]
[378008282,1754665869880,-414.74,0.00019321,2]
[378008283,1754665869889,-576.92,0.00019321,2]
[378008284,1754665869899,-504.74,0.00019321,2]
[378008285,1754665869909,-400.0,0.00019321,2]
[378008286,1754665869919,-794.31,0.00019321,2]
[378008287,1754665869928,-400.0,0.00019321,2]
[378008288,1754665869938,-400.0,0.00019321,2]
[378008289,1754665869948,-1644.44,0.00019321,2]
[378008290,1754665869957,-400.0,0.00019321,2]
[378008291,1754665869967,-400.0,0.00019321,2]
[378008292,1754665869976,-1479.1,0.00019321,2]
[378008293,1754665869986,-400.0,0.00019321,2]
[378008294,1754665869996,-1392.26,0.00019321,2]
[378008295,1754665870006,-487.25,0.00019321,2]
[378008296,1754665870016,-400.0,0.00019321,2]
[378008297,1754665870026,-827.27,0.00019321,2]
[378008298,1754665870035,-3663.05,0.00019321,2]
[378008299,1754665870045,-1694.31,0.00019321,2]
[378008300,1754665870056,-1134.91,0.00019321,2]
[378008301,1754665870066,-569.53,0.00019321,2]
[378008302,1754665870075,-400.0,0.00019321,2]
[378008303,1754665870085,-400.0,0.00019321,2]
[378008304,1754665870094,-1604.55,0.00019321,2]
[378008305,1754665870104,-400.0,0.00019321,2]
[378008306,1754665870114,-1726.2,0.00019321,2]
[378008307,1754665870123,-400.0,0.00019321,2]
[378008308,1754665870133,-230.988641,0.00019321,2]
[378008309,1754665870143,-1635.03,0.00019321,2]
[378008310,1754665870153,-4209.07,0.00019321,2]
[378008311,1754665870162,-7336.42,0.00019321,2]
[378008312,1754665870172,-400.0,0.00019321,2]
[378008313,1754665870182,-151.0,0.00019321,2]
[378008314,1754665870191,-218.556623,0.00019321,2]
[378008315,1754665870201,-474.76,0.00019321,2]
[378008316,1754665870210,-400.0,0.00019321,2]
[378008317,1754665870220,-218.556627,0.00019321,2]
[378008318,1754665870230,-1402.19,0.00019321,2]
[378008319,1754665870239,-1230.28,0.00019321,2]
[378008320,1754665870249,-2130.07,0.00019321,2]
[378008321,1754665870260,-435.253285,0.00019321,2]
[378008322,1754665870270,-400.0,0.00019321,2]
[378008323,1754665870280,-400.0,0.00019321,2]
[378008324,1754665870289,-400.0,0.00019321,2]
[378008325,1754665870299,-2025.14,0.00019321,2]
[378008326,1754665870310,-628.07,0.00019321,2]
[378008327,1754665870320,-688.33,0.00019321,2]
[378008328,1754665870330,-400.0,0.00019321,2]
[378008329,1754665870339,-400.0,0.00019321,2]
[378008330,1754665870350,-612.57,0.00019321,2]
[378008331,1754665870360,-3210.22,0.00019321,2]
[378008332,1754665870372,-483.07,0.00019321,2]
[378008333,1754665870381,-178.807506,0.00019321,2]
[378008334,1754665870392,-531.47,0.00019321,2]
[378008335,1754665870402,-400.0,0.00019321,2]
[378008336,1754665870411,-178.807505,0.00019321,2]
[378008337,1754665870421,-5188.28,0.00019321,2]
[378008338,1754665870430,-1541.01,0.00019321,2]
[378008339,1754665870440,-5876.12,0.00019321,2]
[378008340,1754665870450,-400.0,0.00019321,2]
[378008341,1754665870462,-513.95,0.00019321,2]
[378008342,1754665870695,-400.0,0.00019321,2]
[378008343,1754665870711,-400.0,0.00019321,2]
[378008344,1754665870721,-420.86,0.00019321,2]
[378008345,1754665870731,-1067.41,0.00019321,2]
[378008346,1754665870741,-1585.22,0.00019321,2]
[378008347,1754665870750,-400.0,0.00019321,2]
[378008348,1754665870760,-4259.87,0.00019321,2]
[378008349,1754665870770,-400.0,0.00019321,2]
[378008350,1754665870780,-8121.87,0.00019321,2]
[378008351,1754665870789,-400.0,0.00019321,2]
[378008352,1754665870799,-184.09267448,0.00019321,2]
[378008353,1754665870809,-1121.8,0.00019321,2]
[378008354,1754665870819,-1476.09,0.00019321,2]
[378008355,1754665870828,-644.13,0.00019321,2]
[378008356,1754665870838,-575.11,0.00019321,2]
[378008357,1754665870860,-6057.34,0.00019321,2]
[378008358,1754665870876,-619.05,0.00019321,2]
[378008359,1754665870886,-528.46,0.00019321,2]
[378008360,1754665870896,-6693.11,0.00019321,2]
[378008361,1754665870906,-1345.7,0.00019321,2]
[378008362,1754665870915,-1709.16,0.00019321,2]
[378008363,1754665870925,-203.618454,0.00019321,2]
[378008364,1754665870934,-1291.02,0.00019321,2]
[378008365,1754665870944,-1813.43,0.00019321,2]
[378008366,1754665870954,-422.85,0.00019321,2]
[378008367,1754665870963,-203.618458,0.00019321,2]
[378008368,1754665870973,-361.44438916,0.00019321,2]
[378008369,1754665870983,-2167.73,0.00019321,2]
[378008370,1754665870992,-400.0,0.00019321,2]
[378008371,1754665871002,-652.0,0.00019321,2]
[378008372,1754665871011,-400.0,0.00019321,2]
[378008373,1754665871021,-400.0,0.00019321,2]
[378008374,1754665871031,-1469.15,0.00019321,2]
[378008375,1754665871041,-646.71,0.00019321,2]
[378008376,1754665871050,-563.16,0.00019321,2]
[378008377,1754665871060,-1310.0,0.00019321,2]
[378008378,1754665871070,-824.19,0.00019321,2]
[378008379,1754665871079,-609.49,0.00019321,2]
[378008380,1754665871088,-151.0,0.00019321,2]
[378008381,1754665871098,-400.0,0.00019321,2]
[378008382,1754665871107,-9554.86,0.00019321,2]
[378008383,1754665871116,-1273.12,0.00019321,2]
[378008384,1754665871125,-1930.11,0.00019321,2]
[378008385,1754665871135,-888.103447,0.00019321,2]
[378008386,1754665871146,-400.0,0.00019321,2]
[378008387,1754665871156,-4202.88,0.00019321,2]
[378008388,1754665871166,-469.3,0.00019321,2]
[378008389,1754665871175,-888.103455,0.00019321,2]
[378008390,1754665871185,-6401.52,0.00019321,2]
[378008391,1754665871194,-400.0,0.00019321,2]
[378008392,1754665871203,-400.0,0.00019321,2]
[378008393,1754665871214,-643.68,0.00019321,2]
[378008394,1754665871224,-400.0,0.00019321,2]
[378008395,1754665871234,-400.0,0.00019321,2]
[378008396,1754665871244,-1810.41,0.00019321,2]
[378008397,1754665871254,-1108.42,0.00019321,2]
[378008398,1754665871266,-569.88,0.00019321,2]
[378008399,1754665871275,-400.0,0.00019321,2]
[378008400,1754665871286,-828.43,0.00019321,2]
[378008401,1754665871296,-314.83135575,0.00019321,2]
[378008402,1754665871305,-5768.73,0.00019321,2]
[378008403,1754665871315,-498.93,0.00019321,2]
[378008404,1754665871325,-603.11,0.00019321,2]
[378008405,1754665871335,-5374.73,0.00019321,2]
[378008406,1754665871346,-400.0,0.00019321,2]
[378008407,1754665871355,-151.0,0.00019321,2]
[378008408,1754665871366,-817.89,0.00019321,2]
[378008409,1754665871375,-5381.91,0.00019321,2]
[378008410,1754665871387,-514.29,0.00019321,2]
[378008411,1754665871397,-3846.97,0.00019321,2]
[378008412,1754665871407,-1228.87,0.00019321,2]
[378008413,1754665871417,-400.0,0.00019321,2]
[378008414,1754665871427,-400.0,0.00019321,2]
[378008415,1754665871436,-400.0,0.00019321,2]
[378008416,1754665871446,-4234.54,0.00019321,2]
[378008417,1754665871455,-400.0,0.00019321,2]
[378008418,1754665871464,-887.14,0.00019321,2]
[378008419,1754665871474,-400.0,0.00019321,2]
[378008420,1754665871483,-1498.581353,0.00019391,2]
[378008421,1754665871493,-151.0,0.000194,2]
[378008422,1754665871502,-151.0,0.000194,2]
[378008423,1754665871511,-240.0,0.000194,2]
[378008424,1754665871521,-379.0,0.000194,2]
[378008425,1754665871531,-540.76205,0.0001942,2]
[378008426,1754665871541,-151.0,0.00019426,2]
[378008427,1754665871550,-151.0,0.00019426,2]
[378008428,1754665871560,-151.0,0.00019426,2]
[378008429,1754665871570,-151.0,0.00019426,2]
[378008430,1754665871579,-914.1,0.00019428,2]
[378008431,1754665871589,-600.0,0.00019449,2]
[378008432,1754665871599,-229.71,0.00019449,2]
[378008433,1754665871608,-1214.28032899,0.00019459,2]
[378008434,1754665871618,-1587.85853998,0.00019474,2]
[378008435,1754665871628,-158.213943,0.00019488,2]
[378008436,1754665871638,-507.2052592,0.000195,2]
[378008437,1754665871651,-179.01,0.000195,2]